bitfinex/quotes_SOLUSD_20250310
["timestamp","ask_amount","ask_price","bid_price","bid_amount"]
[1741573326163,0.03,128.9,128.87,292.16242704]
[1741573326365,0.03,128.9,128.87,263.90128446]
[1741573327592,0.03,128.9,128.87,271.66098446]
[1741573327987,0.03,128.9,128.87,273.66098446]
[1741573328565,0.03,128.9,128.88,83.44]
[1741573328764,0.03,128.9,128.89,53.46828538]
[1741573328989,0.03,128.9,128.89,293.82392761]
[1741573329291,0.03,128.9,128.89,604.66093332]
[1741573329664,0.5,128.93,128.92,22.0]
[1741573329964,0.5,128.93,128.92,307.3035553]
[1741573329965,0.0001,128.93,128.92,307.3035553]
[1741573330164,0.53,129.01,128.98,20.64964886]
[1741573330363,0.53,129.01,128.98,158.42307276]
[1741573330564,0.53,129.01,128.98,157.26093332]
[1741573330787,0.53,129.01,128.98,136.61128446]
[1741573330978,0.53,129.01,128.98,104.95564223]
[1741573331167,7.752,129.0,128.98,81.44]
[1741573331497,8.21766,128.99,128.98,104.95564223]
[1741573331692,0.46516,128.99,128.98,104.95564223]
[1741573332277,0.46516,128.99,128.98,119.03475093]
[1741573333494,0.46516,128.99,128.98,156.62950186]
[1741573333670,0.46516,128.99,128.98,119.03475093]
[1741573334569,8.21766,128.99,128.98,37.59475093]
[1741573334989,8.21766,128.99,128.97,45.73475093]
[1741573335194,8.21766,128.99,128.97,8.14]
[1741573335585,8.21766,128.99,128.93,135.4]
[1741573335586,65.19371093,128.99,128.94,8.1]
[1741573335792,37.59475093,128.97,128.94,8.1]
[1741573336095,45.34905093,128.96,128.91,37.59475093]
[1741573336300,27.1401,128.96,128.91,37.59475093]
[1741573336596,37.59475093,128.95,128.9,45.71475093]
[1741573336898,7.7543,128.96,128.93,37.59475093]
[1741573338398,18.64964886,128.98,128.93,37.59475093]
[1741573338709,37.59475093,128.97,128.9,8.12]
[1741573338876,37.59475093,128.96,128.9,45.71475093]
[1741573339075,37.59475093,128.97,128.91,37.59475093]
[1741573339276,0.03,128.96,128.91,37.59475093]
[1741573339481,8.0635,128.92,128.88,8.1]
[1741573339703,8.0635,128.92,128.88,45.69475093]
[1741573340119,8.0635,128.92,128.89,37.59475093]
[1741573340583,15.8204,128.92,128.89,37.59475093]
[1741573341081,15.8204,128.92,128.88,45.69475093]
[1741573341281,15.8204,128.92,128.88,8.1]
[1741573341498,15.8204,128.92,128.89,37.59475093]
[1741573342092,15.8204,128.92,128.88,45.69475093]
[1741573342276,15.8204,128.92,128.89,37.59475093]
[1741573342617,15.8204,128.92,128.88,45.69475093]
[1741573342974,15.8204,128.92,128.89,37.59475093]
[1741573343513,15.8204,128.92,128.88,45.69475093]
[1741573345518,15.8204,128.92,128.88,37.59475093]
[1741573346116,15.8204,128.92,128.89,37.59475093]
[1741573346297,15.8204,128.92,128.85,15.7807]
[1741573346503,15.8204,128.92,128.88,37.59475093]
[1741573348622,37.59475093,128.89,128.83,37.59475093]
[1741573348823,101.04964886,128.91,128.82,37.59475093]
[1741573348824,37.59475093,128.87,128.82,37.59475093]
[1741573349193,37.59475093,128.88,128.82,37.59475093]
[1741573349524,37.59475093,128.86,128.81,38.09975093]
[1741573349697,45.35505093,128.86,128.81,46.09975093]
[1741573349896,7.5456,128.84,128.81,0.505]
[1741573350916,45.14035093,128.84,128.81,0.505]
[1741573351323,7.5456,128.84,128.81,0.505]
[1741573351716,7.7621,128.83,128.81,0.505]
[1741573352643,45.35685093,128.83,128.81,0.505]
[1741573355952,37.59475093,128.82,128.81,0.505]
[1741573356245,45.35685093,128.83,128.81,0.505]
[1741573356430,7.7621,128.83,128.81,0.505]
[1741573357034,45.35685093,128.83,128.81,0.505]
[1741573358619,7.7621,128.83,128.81,0.505]
[1741573361262,89.9456,128.84,128.81,0.505]
[1741573361454,97.7073,128.84,128.81,38.09975093]
[1741573362158,97.7073,128.84,128.81,0.505]
[1741573362941,82.4,128.84,128.82,37.59475093]
[1741573363127,82.4,128.84,128.82,45.49475093]
[1741573364261,7.7611,128.85,128.82,45.49475093]
[1741573365176,7.7611,128.85,128.82,7.9]
[1741573365358,8.2219,128.88,128.83,37.59475093]
[1741573365662,7.7599,128.87,128.82,45.49475093]
[1741573365825,45.35465093,128.87,128.82,45.49475093]
[1741573366029,37.59475093,128.86,128.82,7.9]
[1741573366258,64.75395093,128.87,128.82,7.9]
[1741573366858,7.7599,128.87,128.82,45.49475093]
[1741573367365,45.35465093,128.87,128.82,45.49475093]
[1741573367660,37.59475093,128.86,128.82,7.9]
[1741573368364,7.7609,128.85,128.82,7.9]
[1741573370266,42.95827679,128.87,128.82,31.45897679]
[1741573370437,7.7603,128.86,128.82,31.45897679]
[1741573370781,7.7603,128.86,128.82,7.9]
[1741573372361,7.7597,128.87,128.83,23.55897679]
[1741573372569,1.6392,128.88,128.85,23.55897679]
[1741573372749,7.7581,128.9,128.86,23.55897679]
[1741573372940,7.7581,128.9,128.85,23.55897679]
[1741573373580,29.98367679,128.91,128.87,23.55897679]
[1741573373581,14.1822,128.91,128.87,23.55897679]
[1741573373753,1.618,128.93,128.88,23.55897679]
[1741573373961,1.618,128.93,128.9,23.55897679]
[1741573374161,9.3743,128.93,128.9,23.55897679]
[1741573374473,9.3743,128.93,128.89,23.55897679]
[1741573375245,23.55897679,128.91,128.87,7.82]
[1741573375462,23.55897679,128.92,128.87,7.82]
[1741573375672,23.55897679,128.9,128.87,7.82]
[1741573375844,23.55897679,128.88,128.87,7.82]
[1741573376046,23.55897679,128.88,128.83,7.82]
[1741573376290,82.4,128.92,128.83,7.82]
[1741573376291,37.68766217,128.87,128.83,7.82]
[1741573376446,7.7603,128.86,128.83,7.82]
[1741573377082,7.7603,128.86,128.83,45.50766217]
[1741573377262,7.7591,128.88,128.84,37.68766217]
[1741573378471,88.7887,128.91,128.86,37.68766217]
[1741573378771,7.758,128.9,128.85,37.68766217]
[1741573378970,27.1528,128.9,128.85,37.68766217]
[1741573379177,64.84046217,128.9,128.85,37.68766217]
[1741573379482,64.84046217,128.9,128.84,37.68766217]
[1741573379776,37.68766217,128.89,128.84,37.68766217]
[1741573379981,64.84046217,128.9,128.84,37.68766217]
[1741573380671,64.84046217,128.9,128.83,536.66]
[1741573380672,37.68766217,128.88,128.83,536.66]
[1741573380851,37.68766217,128.88,128.83,89.26]
[1741573381198,37.68766217,128.86,128.81,0.568]
[1741573381352,37.68766217,128.85,128.81,8.368]
[1741573381563,37.68766217,128.86,128.81,8.368]
[1741573381764,37.68766217,128.86,128.81,46.05566217]
[1741573381968,37.68766217,128.86,128.81,8.368]
[1741573382195,37.68766217,128.85,128.81,8.368]
[1741573382791,82.4,128.87,128.81,8.368]
[1741573382994,37.68766217,128.85,128.81,8.368]
[1741573384479,1.5681,128.86,128.82,37.68766217]
[1741573385090,47.01656217,128.86,128.81,8.368]
[1741573385596,66.41746217,128.86,128.81,8.368]
[1741573386595,9.3289,128.86,128.82,37.68766217]
[1741573386895,90.1597,128.87,128.84,37.68766217]
[1741573387090,27.1563,128.89,128.84,37.68766217]
[1741573387397,7.7585,128.89,128.84,37.68766217]
[1741573387569,45.44616217,128.89,128.83,37.68766217]
[1741573387894,45.44616217,128.89,128.84,37.68766217]
[1741573388093,45.44616217,128.89,128.83,37.68766217]
[1741573388396,37.68766217,128.88,128.82,37.68766217]
[1741573389309,7.7597,128.87,128.83,37.68766217]
[1741573389474,7.7597,128.87,128.83,349.68766217]
[1741573389676,7.7597,128.87,128.82,37.68766217]
[1741573390106,45.44736217,128.87,128.81,8.368]
[1741573390286,37.68766217,128.86,128.81,8.368]
[1741573390484,37.68766217,128.83,128.81,0.568]
[1741573390684,37.68766217,128.84,128.81,0.568]
[1741573391187,6.0208,128.85,128.81,0.568]
[1741573391188,43.70846217,128.85,128.81,0.568]
[1741573391710,45.44916217,128.84,128.81,0.568]
[1741573391877,37.68766217,128.83,128.81,0.568]
[1741573392982,39.20436217,128.82,128.81,0.568]
[1741573393213,37.68766217,128.8,128.77,7.823]
[1741573393389,37.68766217,128.81,128.77,7.823]
[1741573393718,7.7635,128.81,128.78,37.68766217]
[1741573394009,7.7615,128.84,128.8,37.68766217]
[1741573394212,1.5604,128.86,128.81,37.68766217]
[1741573394400,7.7599,128.87,128.83,37.68766217]
[1741573394713,7.7599,128.87,128.84,37.68766217]
[1741573394890,7.7599,128.87,128.83,37.68766217]
[1741573395238,45.44756217,128.87,128.82,45.46766217]
[1741573395383,7.7599,128.87,128.83,37.68766217]
[1741573395882,45.44756217,128.87,128.82,45.46766217]
[1741573396085,45.44756217,128.87,128.82,319.78]
[1741573396290,64.84686217,128.87,128.82,319.78]
[1741573397119,64.84686217,128.87,128.82,357.46766217]
[1741573398100,37.68766217,128.84,128.81,0.063]
[1741573398297,37.68766217,128.83,128.81,0.063]
[1741573398502,18.64964886,128.86,128.81,0.063]
[1741573398713,37.68766217,128.85,128.81,0.063]
[1741573399025,37.68766217,128.84,128.81,0.063]
[1741573400251,7.7603,128.86,128.82,37.68766217]
[1741573400989,7.7603,128.86,128.81,37.75066217]
[1741573401218,7.7603,128.86,128.82,312.0]
[1741573401602,7.7603,128.86,128.82,349.68766217]
[1741573402106,7.7603,128.86,128.82,312.0]
[1741573402299,7.7603,128.86,128.81,37.75066217]
[1741573402619,37.68766217,128.85,128.81,0.063]
[1741573402923,64.84886217,128.86,128.81,0.063]
[1741573404731,37.68766217,128.84,128.81,0.063]
[1741573404920,37.68766217,128.83,128.81,0.063]
[1741573405430,7.7627,128.82,128.81,0.063]
[1741573405725,45.45036217,128.82,128.81,0.063]
[1741573406107,107.19924886,128.81,128.77,0.063]
[1741573406312,37.68766217,128.79,128.77,0.063]
[1741573406829,37.68766217,128.78,128.77,0.063]
[1741573407395,45.45276217,128.78,128.77,0.063]
[1741573409742,7.7651,128.78,128.77,0.063]
[1741573410105,45.45276217,128.78,128.77,0.063]
[1741573411524,64.10241103,128.78,128.77,0.063]
[1741573412225,45.45276217,128.78,128.77,0.063]
[1741573414324,7.7651,128.78,128.77,0.063]
[1741573416725,45.45276217,128.78,128.77,0.063]
[1741573417628,7.7651,128.78,128.77,0.063]
[1741573418035,45.45276217,128.78,128.77,0.063]
[1741573418933,64.10241103,128.78,128.77,0.063]
[1741573419134,64.10241103,128.78,128.77,0.0001]
[1741573420022,120.6806732,128.76,128.75,0.0001]
[1741573420339,203.0806732,128.76,128.75,0.0001]
[1741573420834,165.39301103,128.76,128.75,0.0001]
[1741573421916,173.15931103,128.76,128.75,0.0001]
[1741573424008,34.422,128.76,128.75,0.0001]
[1741573424408,58.01953498,128.76,128.75,0.0001]
[1741573424738,76.66918384,128.76,128.75,0.0001]
[1741573425413,101.04964886,128.75,128.73,0.505]
[1741573425742,105.99753498,128.74,128.73,0.505]
[1741573425919,124.64718384,128.74,128.73,0.505]
[1741573426248,124.64718384,128.74,128.72,0.063]
[1741573426249,127.94319265,128.74,128.72,0.063]
[1741573426854,37.77569265,128.73,128.72,0.0001]
[1741573428041,45.54379265,128.73,128.72,0.0001]
[1741573428245,64.19344151,128.73,128.72,0.0001]
[1741573429117,19.413,128.78,128.72,37.77579265]
[1741573429319,7.7657,128.77,128.74,37.77569265]
[1741573430049,7.7657,128.77,128.73,37.77569265]
[1741573431749,7.7657,128.77,128.72,37.77579265]
[1741573431962,7.7654,128.78,128.74,37.77569265]
[1741573432425,0.03,128.77,128.74,37.77569265]
[1741573436549,0.03,128.77,128.76,37.77569265]
[1741573436754,0.03,128.77,128.76,45.49569265]
[1741573437249,0.03,128.77,128.76,7.72]
[1741573437457,0.03,128.77,128.76,45.49569265]
[1741573438552,0.03,128.77,128.76,7.72]
[1741573441162,0.03,128.77,128.73,119.21569265]
[1741573441336,0.03,128.77,128.73,45.49569265]
[1741573442068,0.03,128.77,128.73,37.77569265]
[1741573442271,37.77569265,128.74,128.72,0.0001]
[1741573443267,37.77569265,128.75,128.72,0.0001]
[1741573443467,37.77569265,128.74,128.72,0.0001]
[1741573444362,7.7681,128.73,128.72,0.0001]
[1741573444566,45.54379265,128.73,128.72,0.0001]
[1741573444745,7.7681,128.73,128.72,0.0001]
[1741573445446,45.54379265,128.73,128.72,0.0001]
[1741573448355,31.38127061,128.73,128.72,0.0001]
[1741573448862,50.03091947,128.73,128.72,0.0001]
[1741573449462,132.43091947,128.73,128.72,0.0001]
[1741573450387,132.43091947,128.73,128.7,0.0001]
[1741573450562,42.26281947,128.71,128.7,0.0001]
[1741573451785,23.61317061,128.7,128.69,0.0001]
[1741573452686,31.38317061,128.7,128.69,0.0001]
[1741573452889,26.41964886,128.7,128.69,0.0001]
[1741573453071,50.03281947,128.7,128.69,0.0001]
[1741573453781,73.64599008,128.7,128.69,0.0001]
[1741573453967,50.03281947,128.7,128.69,0.0001]
[1741573454492,7.77,128.7,128.69,0.0001]
[1741573456697,7.7694,128.71,128.69,0.0001]
[1741573457184,31.38257061,128.71,128.69,0.0001]
[1741573457369,23.61317061,128.7,128.69,0.0001]
[1741573458782,50.03281947,128.7,128.69,0.0001]
[1741573459192,73.64599008,128.7,128.69,0.0001]
[1741573459368,93.07099008,128.7,128.66,3.1674786]
[1741573459570,23.61317061,128.67,128.66,3.1674786]
[1741573461194,31.38497061,128.67,128.66,3.1674786]
[1741573462697,50.03461947,128.67,128.66,3.1674786]
[1741573462997,50.03461947,128.67,128.66,7.86e-05]
[1741573467175,26.42144886,128.67,128.66,7.86e-05]
[1741573467381,38.64964886,128.65,128.64,7.86e-05]
[1741573467900,62.26281947,128.65,128.64,7.86e-05]
[1741573468895,70.03581947,128.65,128.64,7.86e-05]
[1741573472297,46.42264886,128.65,128.64,7.86e-05]
[1741573472506,7.773,128.65,128.64,7.86e-05]
[1741573473088,106.01317061,128.67,128.64,7.86e-05]
[1741573473290,82.4,128.67,128.64,7.86e-05]
[1741573473496,26.42024886,128.69,128.64,7.86e-05]
[1741573473681,50.03341947,128.69,128.64,23.61324921]
[1741573473881,50.03341947,128.69,128.64,31.33324921]
[1741573474298,23.61317061,128.68,128.64,7.7200786]
[1741573474498,23.61317061,128.67,128.64,7.7200786]
[1741573475079,23.61317061,128.68,128.64,7.7200786]
[1741573475904,45.84674886,128.69,128.64,7.7200786]
[1741573476202,23.61317061,128.68,128.64,7.7200786]
[1741573476503,31.38497061,128.67,128.64,7.7200786]
[1741573476804,23.61317061,128.66,128.64,7.7200786]
[1741573477177,23.61317061,128.65,128.64,7.7200786]
[1741573477508,23.61317061,128.65,128.64,7.86e-05]
[1741573478085,42.26281947,128.66,128.64,7.86e-05]
[1741573479125,7.773,128.65,128.64,7.86e-05]
[1741573479579,31.38617061,128.65,128.64,7.86e-05]
[1741573481709,7.7718,128.67,128.64,7.86e-05]
[1741573481910,7.7718,128.67,128.64,23.61324921]
[1741573482085,20.0,128.67,128.64,23.61324921]
[1741573482292,7.8014,128.68,128.64,23.61324921]
[1741573482710,7.8014,128.68,128.64,7.86e-05]
[1741573483285,31.41457061,128.68,128.64,7.86e-05]
[1741573484208,7.8014,128.68,128.64,7.86e-05]
[1741573484419,7.8014,128.68,128.64,312.0000786]
[1741573484589,31.41457061,128.68,128.64,312.0000786]
[1741573484780,31.41457061,128.68,128.64,7.86e-05]
[1741573486111,23.61317061,128.67,128.64,7.86e-05]
[1741573486311,31.41457061,128.68,128.64,7.86e-05]
[1741573487688,31.41457061,128.68,128.64,312.0000786]
[1741573487911,23.61317061,128.67,128.64,312.0000786]
[1741573488588,7.8014,128.68,128.64,312.0000786]
[1741573488818,31.41457061,128.68,128.64,312.0000786]
[1741573489408,23.61317061,128.67,128.64,312.0000786]
[1741573489913,23.61317061,128.67,128.64,7.86e-05]
[1741573490114,7.7724,128.66,128.64,7.86e-05]
[1741573493807,7.772,128.67,128.64,7.86e-05]
[1741573495716,31.38517061,128.67,128.64,7.86e-05]
[1741573496617,23.61317061,128.66,128.64,7.86e-05]
[1741573496917,31.38517061,128.67,128.64,7.86e-05]
[1741573499799,0.03,128.68,128.64,23.61324921]
[1741573499800,7.8014,128.68,128.64,23.61324921]
[1741573500332,22.91913876,128.68,128.64,7.86e-05]
[1741573501119,15.11773876,128.66,128.64,7.86e-05]
[1741573501636,7.773,128.65,128.64,7.86e-05]
[1741573502211,22.89073876,128.65,128.64,7.86e-05]
[1741573502406,41.54038762,128.65,128.64,7.86e-05]
[1741573503222,43.13218762,128.65,128.64,7.86e-05]
[1741573503536,6.3862,128.64,128.63,7.86e-05]
[1741573503720,81.9748938,128.64,128.63,7.86e-05]
[1741573504224,6.3862,128.64,128.63,7.86e-05]
[1741573504425,61.45939496,128.64,128.63,7.86e-05]
[1741573504932,80.10904382,128.64,128.63,7.86e-05]
[1741573505229,162.50904382,128.64,128.63,7.86e-05]
[1741573509240,138.85924634,128.64,128.63,7.86e-05]
[1741573509739,162.50904382,128.64,128.63,7.86e-05]
[1741573510837,20.0,128.61,128.6,7.86e-05]
[1741573511042,43.64979748,128.61,128.6,7.86e-05]
[1741573512745,62.29944634,128.61,128.6,7.86e-05]
[1741573512930,70.07484634,128.61,128.6,7.86e-05]
[1741573515536,18.64964886,128.6,128.59,7.86e-05]
[1741573515736,43.80904634,128.6,128.59,7.86e-05]
[1741573515937,67.45884382,128.6,128.59,7.86e-05]
[1741573516142,43.80904634,128.6,128.59,7.86e-05]
[1741573517046,51.58504634,128.6,128.59,7.86e-05]
[1741573520651,24.65504886,128.59,128.58,7.86e-05]
[1741573520859,71.95464382,128.59,128.58,7.86e-05]
[1741573521045,48.30484634,128.59,128.58,7.86e-05]
[1741573521946,56.08144634,128.59,128.58,7.86e-05]
[1741573523156,7.7766,128.59,128.58,7.86e-05]
[1741573523326,7.822,128.63,128.58,7.86e-05]
[1741573523532,7.7748,128.62,128.58,23.64987608]
[1741573523854,23.64979748,128.62,128.58,23.64987608]
[1741573524945,23.64979748,128.62,128.58,7.86e-05]
[1741573525154,23.64979748,128.6,128.58,7.86e-05]
[1741573525444,7.7745,128.63,128.58,7.86e-05]
[1741573525445,43.64979748,128.59,128.58,7.86e-05]
[1741573526752,23.64979748,128.59,128.58,0.0630786]
[1741573529150,23.64979748,128.6,128.58,0.0630786]
[1741573529463,23.64979748,128.59,128.58,0.0630786]
[1741573529831,42.29944634,128.59,128.58,0.0630786]
[1741573530460,33.79164639,128.59,128.58,0.0630786]
[1741573532942,15.14199753,128.6,128.58,0.0630786]
[1741573533124,0.03,128.62,128.58,7.7830786]
[1741573533328,0.03,128.62,128.58,30.70227613]
[1741573534659,0.03,128.62,128.58,544.4002786]
[1741573534853,0.03,128.62,128.61,15.14199753]
[1741573535366,0.03,128.62,128.61,22.91739753]
[1741573536349,0.03,128.62,128.61,31.40232903]
[1741573536952,0.03,128.62,128.61,248.24232903]
[1741573538242,0.03,128.62,128.61,560.24232903]
[1741573539163,0.03,128.62,128.61,552.46692903]
[1741573539463,0.03,128.62,128.61,7.72]
[1741573540976,0.03,128.62,128.61,31.34692903]
[1741573541138,0.03,128.62,128.61,39.12232903]
[1741573541338,0.03,128.62,128.61,31.34692903]
[1741573542056,0.03,128.62,128.61,7.72]
[1741573542445,0.03,128.62,128.61,31.34692903]
[1741573542963,0.03,128.62,128.61,7.72]
[1741573544037,0.03,128.62,128.6,23.62692903]
[1741573544270,0.03,128.62,128.61,7.72]
[1741573546355,0.03,128.62,128.59,89.16]
[1741573547475,0.03,128.62,128.59,7.72]
[1741573548267,0.03,128.62,128.59,31.34692903]
[1741573549276,0.03,128.62,128.59,7.72]
[1741573549576,0.03,128.62,128.58,0.0630786]
[1741573549752,0.03,128.62,128.58,7.7630786]
[1741573549944,0.03,128.62,128.58,0.0630786]
[1741573550149,23.65692903,128.62,128.58,0.0630786]
[1741573550578,23.62692903,128.61,128.58,0.0630786]
[1741573551680,7.776,128.6,128.58,0.0630786]
[1741573551977,31.40292903,128.6,128.58,0.0630786]
[1741573553149,23.62692903,128.59,128.58,0.0630786]
[1741573554586,50.05317789,128.59,128.58,0.0630786]
[1741573554794,73.68010692,128.59,128.58,7.86e-05]
[1741573555081,50.05317789,128.59,128.58,7.86e-05]
[1741573556173,101.04964886,128.58,128.57,7.86e-05]
[1741573556379,26.64404886,128.57,128.56,0.0001]
[1741573556559,50.27097789,128.57,128.56,0.0001]
[1741573556877,20.0,128.53,128.51,0.568]
[1741573557081,42.27657789,128.52,128.51,0.568]
[1741573557575,42.27657789,128.54,128.51,0.568]
[1741573558175,23.62692903,128.52,128.51,0.568]
[1741573558563,82.4,128.55,128.51,0.568]
[1741573558766,23.62692903,128.55,128.51,0.568]
[1741573559587,23.62692903,128.54,128.51,0.568]
[1741573560079,43.62692903,128.53,128.51,0.568]
[1741573560269,23.62692903,128.52,128.51,0.568]
[1741573560869,43.62692903,128.53,128.51,0.568]
[1741573561183,23.62692903,128.54,128.51,0.568]
[1741573561480,23.62692903,128.55,128.51,0.568]
[1741573561657,23.62692903,128.53,128.51,0.568]
[1741573561855,23.62692903,128.52,128.51,0.568]
[1741573562274,23.62692903,128.53,128.51,0.568]
[1741573562474,23.62692903,128.54,128.51,0.568]
[1741573562680,23.62692903,128.55,128.51,0.568]
[1741573563074,23.62692903,128.54,128.51,0.568]
[1741573563671,23.62692903,128.53,128.51,0.568]
[1741573563867,7.7792,128.55,128.51,0.568]
[1741573563868,23.62692903,128.54,128.51,0.568]
[1741573564075,101.04964886,128.56,128.51,8.3494]
[1741573564264,82.4,128.56,128.51,31.97632903]
[1741573564466,7.9944,128.57,128.52,31.32692903]
[1741573564674,42.27657789,128.58,128.52,31.32692903]
[1741573564871,42.27657789,128.58,128.53,7.7802]
[1741573565760,23.62692903,128.57,128.53,7.7802]
[1741573566161,23.62692903,128.58,128.53,31.40712903]
[1741573566459,23.62692903,128.57,128.52,319.7]
[1741573566665,23.62692903,128.55,128.52,319.7]
[1741573566897,31.40602903,128.55,128.52,319.7]
[1741573567191,23.62692903,128.55,128.52,319.7]
[1741573567412,7.7786,128.56,128.52,319.7]
[1741573567413,23.62692903,128.56,128.52,319.7]
[1741573568278,8.0117,128.6,128.55,23.62692903]
[1741573568480,23.62692903,128.61,128.56,23.62692903]
[1741573568785,0.03,128.62,128.58,23.62692903]
[1741573569590,0.03,128.62,128.6,23.62692903]
[1741573569793,0.03,128.62,128.61,23.62692903]
[1741573570091,0.03,128.62,128.61,240.46692903]
[1741573570669,0.03,128.62,128.61,248.24232903]
[1741573570873,0.03,128.62,128.61,216.84]
[1741573571365,0.03,128.62,128.61,552.46692903]
[1741573571691,0.03,128.62,128.61,393.44]
[1741573572087,0.03,128.62,128.61,417.06692903]
[1741573572304,0.03,128.65,128.64,20.0]
[1741573572467,0.53,128.7,128.68,20.0]
[1741573572671,0.53,128.7,128.69,7.7]
[1741573572969,0.53,128.7,128.69,282.34937906]
[1741573573170,0.53,128.7,128.69,249.78682903]
[1741573573379,0.53,128.7,128.69,224.54]
[1741573573896,0.53,128.7,128.69,248.16692903]
[1741573574393,0.53,128.7,128.69,262.29193883]
[1741573575467,0.53,128.7,128.69,574.29193883]
[1741573575867,0.53,128.7,128.69,536.54]
[1741573576086,0.53,128.7,128.69,224.54]
[1741573576370,0.53,128.7,128.69,262.29193883]
[1741573576697,0.53,128.7,128.69,224.54]
[1741573577101,8.3,128.7,128.69,7.7]
[1741573577893,46.05193883,128.7,128.67,7.7]
[1741573578075,8.3,128.7,128.64,7.7]
[1741573578402,0.53,128.7,128.67,37.75193883]
[1741573578779,0.53,128.7,128.69,37.75193883]
[1741573578996,0.53,128.7,128.69,7.7]
[1741573579174,8.3,128.7,128.69,7.7]
[1741573580206,46.05193883,128.7,128.69,7.7]
[1741573581416,64.70158769,128.7,128.63,37.75193883]
[1741573581593,37.75193883,128.65,128.63,7.7]
[1741573581781,37.75193883,128.64,128.63,7.7]
[1741573582181,56.40158769,128.64,128.59,7.7]
[1741573582410,56.40158769,128.64,128.59,45.45193883]
[1741573582593,37.75193883,128.63,128.59,7.7]
[1741573582925,37.75193883,128.67,128.61,37.75193883]
[1741573583118,7.7724,128.66,128.62,37.75193883]
[1741573583418,64.17398769,128.66,128.61,254.59193883]
[1741573583704,37.75193883,128.65,128.61,216.84]
[1741573584016,83.60498769,128.66,128.61,254.59193883]
[1741573584209,7.7724,128.66,128.62,37.75193883]
[1741573584403,7.7724,128.66,128.63,37.75193883]
[1741573584598,7.7724,128.66,128.64,7.7]
[1741573585001,37.75193883,128.65,128.64,7.7]
[1741573585711,56.40158769,128.65,128.62,135.4]
[1741573585914,37.75193883,128.63,128.62,135.4]
[1741573586111,37.75193883,128.65,128.59,357.45193883]
[1741573586300,37.75193883,128.65,128.6,37.75193883]
[1741573587017,7.7736,128.64,128.6,37.75193883]
[1741573587925,45.52553883,128.64,128.59,574.29193883]
[1741573588712,45.52553883,128.64,128.59,536.54]
[1741573588921,7.7732,128.65,128.61,37.75193883]
[1741573589695,45.52513883,128.65,128.6,37.75193883]
[1741573590194,45.52513883,128.65,128.6,254.59193883]
[1741573590391,120.68193883,128.7,128.64,75.50387766]
[1741573590392,0.53,128.7,128.64,75.50387766]
[1741573590589,0.53,128.7,128.69,37.75193883]
[1741573590819,0.53,128.7,128.69,216.84]
[1741573591326,0.53,128.7,128.65,224.54]
[1741573591531,0.53,128.7,128.66,37.75193883]
[1741573592590,38.28193883,128.7,128.65,262.29193883]
[1741573592798,37.75193883,128.68,128.65,224.54]
[1741573593198,8.3,128.7,128.65,224.54]
[1741573593508,37.75193883,128.69,128.65,536.54]
[1741573593715,37.75193883,128.68,128.65,536.54]
[1741573594423,37.75193883,128.68,128.65,7.7]
[1741573594605,37.75193883,128.67,128.65,7.7]
[1741573594931,37.75193883,128.66,128.63,216.84]
[1741573595102,37.75193883,128.65,128.61,7.7]
[1741573595465,37.75193883,128.65,128.61,224.54]
[1741573595931,37.75193883,128.65,128.61,89.14]
[1741573596133,6.6616,128.67,128.61,89.14]
[1741573596134,37.75193883,128.64,128.61,89.14]
[1741573596429,37.75193883,128.65,128.61,89.14]
[1741573596616,45.52613883,128.64,128.61,81.44]
[1741573596922,37.75193883,128.63,128.61,81.44]
[1741573597699,37.75193883,128.62,128.57,135.4]
[1741573597922,37.75193883,128.61,128.57,7.7]
[1741573598530,39.38993883,128.62,128.57,7.7]
[1741573598823,45.52733883,128.61,128.57,7.7]
[1741573599199,7.7754,128.61,128.57,7.7]
[1741573600031,37.75193883,128.64,128.59,37.75193883]
[1741573600203,37.75193883,128.64,128.58,37.75193883]
[1741573600535,37.75193883,128.61,128.57,7.7]
[1741573600833,18.64964886,128.63,128.58,37.75193883]
[1741573600994,56.40158769,128.63,128.58,37.75193883]